{"text_format":"1","workbook":"xlsx","n_sheets":5,"sheets":["Notes","Summary","ICB","Organisations","BS"],"not_rendered":{"charts":0,"images":0,"macros":1,"external_links":0,"defined_names":4,"comments":0,"pivot_tables":0},"unopened":[],"bounds":{"document_bytes":16777216,"sheet_cells":100000,"rows_first":2000,"rows_last":500,"rows_between":2000,"halvings":0,"cell_chars":16384,"cell_head_chars":4096},"cells_cut":0,"cells_raw":0,"read":"whole","date_system":"1900"}

{"sheet":"Notes","index":0,"n_rows":2,"n_cols":8,"rows_kept":2,"cut":false,"hidden":false,"merged":[[1,1,1,4]]}
[]
[null,"Post-COVID clinic Friends and Family Test (FFT) data - October 2022",null,null,null,null,null,"  Show data for:"]

{"sheet":"Summary","index":1,"n_rows":7,"n_cols":10,"rows_kept":7,"cut":false,"hidden":false,"merged":[[2,1,3,1],[2,4,2,5],[2,6,2,7],[2,8,2,9]]}
[]
[]
[null,"FFT","Number of organisations submitting","Total responses to date","Responses",null,"Percentage Positive",null,"Percentage Negative"]
[null,null,"2022-10-01","2022-10-01","2022-10-01","2022-09-26","2022-10-01","2022-09-26","2022-10-01","2022-09-26"]
[null,"Post Covid Q1",65,7925,807,835,0.92936802973977695,0.94730538922155694,2.2304832713754646E-2,2.1556886227544911E-2]
[null,"Post Covid Q2",65,6238,485,522,0.96082474226804127,0.96360153256704983,3.9175257731958762E-2,3.6398467432950193E-2]
[null,"Post Covid Q3",65,6140,478,522,0.99581589958159,0.98467432950191569,4.1841004184100415E-3,1.532567049808429E-2]

{"sheet":"ICB","index":2,"n_rows":49,"n_cols":24,"rows_kept":49,"cut":false,"hidden":false,"merged":[[2,15,2,17],[3,15,3,17],[3,12,4,12],[3,13,4,13],[3,14,4,14],[2,0,4,0],[2,1,4,1],[2,2,2,4],[2,5,2,10],[2,11,2,14],[3,2,4,2],[3,3,4,3],[3,4,4,4],[3,5,3,10],[3,11,4,11],[3,18,4,18],[3,19,4,19],[3,20,4,20],[3,21,3,23],[2,18,2,20],[2,21,2,23]]}
[]
[]
["ICB Code","ICB Name","Question 1",null,null,"Question 1",null,null,null,null,null,"Question 2",null,null,null,"Question 2",null,null,"Question 3",null,null,"Question 3"]
[null,null,"Total Responses","Percentage Positive","Percentage Negative","Breakdown of Responses",null,null,null,null,null,"Total Responses","Total Eligible","Percentage Positive","Percentage Negative","Breakdown of Responses",null,null,"Total Responses","Percentage Positive","Percentage Negative","Breakdown of Responses"]
[null,null,null,null,null,"Very Good","Good","Neither Good nor Poor","Poor","Very Poor","Don't Know",null,null,null,null,"Yes definitely","Yes to some extent","No",null,null,null,"Yes definitely","Yes to some extent","No"]
[null,"England",807,0.92936802973977695,2.2304832713754646E-2,616,134,36,11,7,3,485,1877,0.96082474226804127,3.9175257731958762E-2,410,56,19,478,0.99581589958159,4.1841004184100415E-3,454,22,2]
[null,"Selection (excluding suppressed data)",{"$f":"SUBTOTAL(9,C8:C61)","v":807},{"$f":"IFERROR((F7+G7)/C7, \"-\")","v":0.91449814126394047},{"$f":"IFERROR((I7+J7)/C7, \"-\")","v":2.1065675340768277E-2},{"$f":"SUBTOTAL(9,F8:F61)","v":606},132,36,10,7,3,485,1877,{"$f":"IFERROR((P7+Q7)/L7, \"-\")","v":0.93608247422680413},{"$f":"IFERROR(R7/M7, \"-\")","v":9.5897709110282364E-3},399,55,18,{"$f":"SUBTOTAL(9,S8:S61)","v":478},{"$f":"IFERROR((V7+W7)/S7, \"-\")","v":0.96861924686192469},{"$f":"IFERROR(X7/S7, \"-\")","v":4.1841004184100415E-3},{"$f":"SUBTOTAL(9,V8:V61)","v":441},22,2]
["QE1","LANCASHIRE AND SOUTH CUMBRIA ICB",5,0.8,0.2,"*","*","*","*","*","*",5,0,0.8,0.2,"*","*","*",5,1,0,"*","*","*"]
["QF7","SOUTH YORKSHIRE ICB",152,0.98026315789473684,1.3157894736842105E-2,123,26,1,2,0,0,1,0,"*","*",1,0,0,1,"*","*",1,0,0]
["QGH","HEREFORDSHIRE AND WORCESTERSHIRE ICB",0,"NA","NA",0,0,0,0,0,0,0,0,"NA","NA",0,0,0,0,"NA","NA",0,0,0]
["QH8","MID AND SOUTH ESSEX ICB",0,"NA","NA",0,0,0,0,0,0,0,0,"NA","NA",0,0,0,0,"NA","NA",0,0,0]
["QHG","BEDFORDSHIRE, LUTON AND MILTON KEYNES ICB",43,0.90697674418604646,0,33,6,4,0,0,0,43,43,0.97674418604651159,2.3255813953488372E-2,37,5,1,43,1,0,40,3,0]
["QHL","BIRMINGHAM AND SOLIHULL ICB",25,0.92,0,18,5,2,0,0,0,25,0,1,0,22,3,0,25,1,0,23,2,0]
["QHM","NORTH EAST AND NORTH CUMBRIA ICB",80,1,0,67,13,0,0,0,0,74,447,1,0,69,5,0,74,1,0,71,3,0]
["QJ2","DERBY AND DERBYSHIRE ICB",0,"NA","NA",0,0,0,0,0,0,0,0,"NA","NA",0,0,0,0,"NA","NA",0,0,0]
["QJG","SUFFOLK AND NORTH EAST ESSEX ICB",29,0.62068965517241381,0.10344827586206896,7,11,8,1,2,0,39,1,0.84615384615384615,0.15384615384615385,25,8,6,39,1,0,34,5,0]
["QJK","DEVON ICB",0,"NA","NA",0,0,0,0,0,0,0,0,"NA","NA",0,0,0,0,"NA","NA",0,0,0]
["QJM","LINCOLNSHIRE ICB",18,0.94444444444444442,5.5555555555555552E-2,14,3,0,1,0,0,18,215,0.94444444444444442,5.5555555555555552E-2,15,2,1,18,1,0,18,0,0]
["QK1","LEICESTER, LEICESTERSHIRE AND RUTLAND ICB",15,1,0,15,0,0,0,0,0,14,108,1,0,13,1,0,15,1,0,15,0,0]
["QKK","SOUTH EAST LONDON ICB",7,1,0,5,2,0,0,0,0,7,111,0.8571428571428571,0.14285714285714285,5,1,1,7,1,0,7,0,0]
["QKS","KENT AND MEDWAY ICB",0,"NA","NA",0,0,0,0,0,0,0,0,"NA","NA",0,0,0,0,"NA","NA",0,0,0]
["QM7","HERTFORDSHIRE AND WEST ESSEX ICB",10,1,0,8,2,0,0,0,0,10,0,0.9,0.1,7,2,1,10,1,0,10,0,0]
["QMF","NORTH EAST LONDON ICB",59,0.83050847457627119,3.3898305084745763E-2,35,14,6,1,1,2,2,0,"*","*",0,2,0,2,"*","*",1,1,0]
["QMJ","NORTH CENTRAL LONDON ICB",0,"NA","NA",0,0,0,0,0,0,0,0,"NA","NA",0,0,0,0,"NA","NA",0,0,0]
["QMM","NORFOLK AND WAVENEY ICB",51,0.94117647058823528,1.9607843137254902E-2,41,7,2,1,0,0,5,0,1,0,5,0,0,5,1,0,5,0,0]
["QNC","STAFFORDSHIRE AND STOKE-ON-TRENT ICB",17,0.88235294117647056,0,13,2,2,0,0,0,17,17,0.94117647058823528,5.8823529411764705E-2,16,0,1,17,1,0,17,0,0]
["QNQ","FRIMLEY ICB",0,"NA","NA",0,0,0,0,0,0,0,0,"NA","NA",0,0,0,0,"NA","NA",0,0,0]
["QNX","SUSSEX ICB",10,1,0,8,2,0,0,0,0,8,0,1,0,8,0,0,8,1,0,8,0,0]
["QOC","SHROPSHIRE, TELFORD AND WREKIN ICB",0,"NA","NA",0,0,0,0,0,0,0,0,"NA","NA",0,0,0,0,"NA","NA",0,0,0]
["QOP","GREATER MANCHESTER ICB",14,1,0,13,1,0,0,0,0,11,65,1,0,10,1,0,11,1,0,10,1,0]
["QOQ","HUMBER AND NORTH YORKSHIRE ICB",4,"*","*","*","*","*","*","*","*",4,7,"*","*","*","*","*",4,"*","*","*","*","*"]
["QOX","BATH AND NORTH EAST SOMERSET, SWINDON AND WILTSHIRE ICB",2,"*","*","*","*","*","*","*","*",2,0,"*","*","*","*","*",2,"*","*","*","*","*"]
["QPM","NORTHAMPTONSHIRE ICB",0,"NA","NA",0,0,0,0,0,0,0,0,"NA","NA",0,0,0,0,"NA","NA",0,0,0]
["QR1","GLOUCESTERSHIRE ICB",19,0.94736842105263153,5.2631578947368418E-2,13,5,0,0,1,0,19,0,1,0,15,4,0,19,0.94736842105263153,5.2631578947368418E-2,17,1,1]
["QRL","HAMPSHIRE AND ISLE OF WIGHT ICB",26,0.96153846153846156,0,22,3,1,0,0,0,26,662,1,0,23,3,0,26,1,0,26,0,0]
["QRV","NORTH WEST LONDON ICB",5,0.8,0.2,3,1,0,0,1,0,5,47,0.8,0.2,3,1,1,5,1,0,3,2,0]
["QSL","SOMERSET ICB",0,"NA","NA",0,0,0,0,0,0,0,0,"NA","NA",0,0,0,0,"NA","NA",0,0,0]
["QT1","NOTTINGHAM AND NOTTINGHAMSHIRE ICB",0,"NA","NA",0,0,0,0,0,0,0,11,"NA","NA",0,0,0,0,"NA","NA",0,0,0]
["QT6","CORNWALL AND THE ISLES OF SCILLY ICB",38,1,0,32,6,0,0,0,0,33,0,1,0,31,2,0,33,1,0,33,0,0]
["QU9","BUCKINGHAMSHIRE, OXFORDSHIRE AND BERKSHIRE WEST ICB",2,"*","*","*","*","*","*","*","*",2,0,"*","*","*","*","*",2,"*","*","*","*","*"]
["QUA","BLACK COUNTRY ICB",39,1,0,39,0,0,0,0,0,35,1,1,0,35,0,0,35,1,0,35,0,0]
["QUE","CAMBRIDGESHIRE AND PETERBOROUGH ICB",13,0.92307692307692313,7.6923076923076927E-2,10,2,0,1,0,0,13,26,1,0,11,2,0,13,1,0,13,0,0]
["QUY","BRISTOL, NORTH SOMERSET AND SOUTH GLOUCESTERSHIRE ICB",0,"NA","NA",0,0,0,0,0,0,0,0,"NA","NA",0,0,0,0,"NA","NA",0,0,0]
["QVV","DORSET ICB",29,0.58620689655172409,0.13793103448275862,10,7,7,2,2,1,29,0,0.82758620689655171,0.17241379310344829,13,11,5,29,0.96551724137931039,3.4482758620689655E-2,26,2,1]
["QWE","SOUTH WEST LONDON ICB",18,0.94444444444444442,0,15,2,1,0,0,0,8,0,0.875,0.125,7,0,1,8,1,0,8,0,0]
["QWO","WEST YORKSHIRE ICB",36,0.97222222222222221,2.7777777777777776E-2,27,8,0,1,0,0,30,85,1,0,28,2,0,22,1,0,20,2,0]
["QWU","COVENTRY AND WARWICKSHIRE ICB",0,"NA","NA",0,0,0,0,0,0,0,23,"NA","NA",0,0,0,0,"NA","NA",0,0,0]
["QXU","SURREY HEARTLANDS ICB",0,"NA","NA",0,0,0,0,0,0,0,8,"NA","NA",0,0,0,0,"NA","NA",0,0,0]
["QYG","CHESHIRE AND MERSEYSIDE ICB",41,0.95121951219512191,0,35,4,2,0,0,0,0,0,"NA","NA",0,0,0,0,"NA","NA",0,0,0]

{"sheet":"Organisations","index":3,"n_rows":72,"n_cols":33,"rows_kept":72,"cut":false,"hidden":false,"merged":[[2,0,4,0],[2,1,4,1],[2,2,4,2],[2,3,2,5],[2,6,2,11],[2,16,2,18],[2,19,2,21],[2,22,2,24],[2,25,3,32],[3,3,4,3],[3,4,4,4],[3,5,4,5],[3,6,3,11],[3,12,4,12],[3,13,4,13],[2,12,2,15],[3,14,4,14],[3,15,4,15],[3,16,3,18],[3,19,4,19],[3,20,4,20],[3,21,4,21],[3,22,3,24]]}
[]
[]
["ICB Code","Trust Code","Trust Name","Question 1",null,null,"Question 1",null,null,null,null,null,"Question 2",null,null,null,"Question 2",null,null,"Question 3",null,null,"Question 3",null,null,"Mode of Collection - Question 1"]
[null,null,null,"Total Responses","Percentage Positive","Percentage Negative","Breakdown of Responses",null,null,null,null,null,"Total Responses","Total Eligible","Percentage Positive","Percentage Negative","Breakdown of Responses",null,null,"Total Responses","Percentage Positive","Percentage Negative","Breakdown of Responses"]
[null,null,null,null,null,null,"Very Good","Good","Neither Good nor Poor","Poor","Very Poor","Don't Know",null,null,null,null,"Yes definitely","Yes to some extent","No",null,null,null,"Yes definitely","Yes to some extent","No","SMS","Smartphone","Smartphone After","Paper","Paper After","Telephone","Online","Other"]
[null,null,"England",807,0.92936802973977695,2.2304832713754646E-2,616,134,36,11,7,3,485,1877,0.96082474226804127,3.9175257731958762E-2,410,56,19,478,0.99581589958159,4.1841004184100415E-3,454,22,2,28,34,10,143,40,55,497,0]
[null,null,"Selection (excluding suppressed data)",{"$f":"SUBTOTAL(9,D8:D880)","v":807},{"$f":"IFERROR((G7+H7)/SUM(G7:L7), \"-\")","v":0.92819614711033271},{"$f":"IFERROR((J7+K7)/SUM(G7:L7), \"-\")","v":1.9264448336252189E-2},{"$f":"SUBTOTAL(9,G8:G880)","v":443},{"$f":"SUBTOTAL(9,H8:H880)","v":87},{"$f":"SUBTOTAL(9,I8:I880)","v":27},{"$f":"SUBTOTAL(9,J8:J880)","v":6},{"$f":"SUBTOTAL(9,K8:K880)","v":5},{"$f":"SUBTOTAL(9,L8:L880)","v":3},{"$f":"SUBTOTAL(9,M8:M880)","v":485},{"$f":"SUBTOTAL(9,N8:N880)","v":1877},{"$f":"IFERROR((Q7+R7)/SUM(Q7:S7), \"-\")","v":0.96969696969696972},{"$f":"IFERROR(S7/SUM(Q7:S7), \"-\")","v":3.0303030303030304E-2},{"$f":"SUBTOTAL(9,Q8:Q880)","v":311},{"$f":"SUBTOTAL(9,R8:R880)","v":41},{"$f":"SUBTOTAL(9,S8:S880)","v":11},{"$f":"SUBTOTAL(9,T8:T880)","v":478},{"$f":"IFERROR((W7+X7)/SUM(W7:Y7), \"-\")","v":0.99522673031026254},{"$f":"IFERROR(Y7/SUM(W7:Y7), \"-\")","v":4.7732696897374704E-3},{"$f":"SUBTOTAL(9,W8:W880)","v":397},20,2,18,20,0,78,38,35,357,0]
["QE1","RW5","LANCASHIRE & SOUTH CUMBRIA NHS FOUNDATION TRUST",5,0.8,0.2,"*","*","*","*","*","*",5,0,0.8,0.2,"*","*","*",5,1,0,5,0,0,"*","*","*","*","*","*","*","*"]
["QF7","RXE","ROTHERHAM DONCASTER AND SOUTH HUMBER NHS FOUNDATION TRUST",2,"*","*","*","*","*","*","*","*",1,0,"*","*","*","*","*",1,"*","*","*","*","*","*","*","*","*","*","*","*","*"]
["QF7","RHQ","SHEFFIELD TEACHING HOSPITALS NHS FOUNDATION TRUST",0,"NA","NA",0,0,0,0,0,0,0,0,"NA","NA",0,0,0,0,"NA","NA",0,0,0,0,0,0,0,0,0,0,0]
["QF7","RFR","THE ROTHERHAM NHS FOUNDATION TRUST",150,0.98,1.3333333333333334E-2,"*","*","*","*","*","*",0,0,"NA","NA",0,0,0,0,"NA","NA",0,0,0,"*","*","*","*","*","*","*","*"]
["QHG","RD8","MILTON KEYNES UNIVERSITY HOSPITAL NHS FOUNDATION TRUST",43,0.90697674418604646,0,33,6,4,0,0,0,43,43,0.97674418604651159,2.3255813953488372E-2,37,5,1,43,1,0,40,3,0,0,0,0,0,0,0,43,0]
["QHL","RYW","BIRMINGHAM COMMUNITY HEALTHCARE NHS FOUNDATION TRUST",25,0.92,0,18,5,2,0,0,0,25,0,1,0,22,3,0,25,1,0,23,2,0,0,0,0,0,0,0,0,0]
["QHM","RXP","COUNTY DURHAM AND DARLINGTON NHS FOUNDATION TRUST",0,"NA","NA",0,0,0,0,0,0,0,0,"NA","NA",0,0,0,0,"NA","NA",0,0,0,0,0,0,0,0,0,0,0]
["QHM","RR7","GATESHEAD HEALTH NHS FOUNDATION TRUST",0,"NA","NA",0,0,0,0,0,0,0,4,"NA","NA",0,0,0,0,"NA","NA",0,0,0,0,0,0,0,0,0,0,0]
["QHM","RNN","NORTH CUMBRIA INTEGRATED CARE NHS FOUNDATION TRUST",4,"*","*","*","*","*","*","*","*",4,18,"*","*","*","*","*",4,"*","*","*","*","*","*","*","*","*","*","*","*","*"]
["QHM","RVW","NORTH TEES AND HARTLEPOOL NHS FOUNDATION TRUST",4,"*","*","*","*","*","*","*","*",0,350,"NA","NA",0,0,0,0,"NA","NA",0,0,0,"*","*","*","*","*","*","*","*"]
["QHM","RTF","NORTHUMBRIA HEALTHCARE NHS FOUNDATION TRUST",13,1,0,10,3,0,0,0,0,11,47,1,0,9,2,0,11,1,0,8,3,0,13,0,0,0,0,0,0,0]
["QHM","RTR","SOUTH TEES HOSPITALS NHS FOUNDATION TRUST",8,1,0,5,3,0,0,0,0,8,0,1,0,6,2,0,8,1,0,8,0,0,5,0,0,0,0,0,3,0]
["QHM","R0B","SOUTH TYNESIDE AND SUNDERLAND NHS FOUNDATION TRUST",26,1,0,22,4,0,0,0,0,26,0,1,0,26,0,0,26,1,0,26,0,0,0,0,0,0,23,0,3,0]
["QHM","RTD","THE NEWCASTLE UPON TYNE HOSPITALS NHS FOUNDATION TRUST",25,1,0,24,1,0,0,0,0,25,28,1,0,25,0,0,25,1,0,25,0,0,0,0,0,25,0,0,0,0]
["QJ2","RY8","DERBYSHIRE COMMUNITY HEALTH SERVICES NHS FOUNDATION TRUST",0,"NA","NA",0,0,0,0,0,0,0,0,"NA","NA",0,0,0,0,"NA","NA",0,0,0,0,0,0,0,0,0,0,0]
["QJG","RDE","EAST SUFFOLK AND NORTH ESSEX NHS FOUNDATION TRUST",28,0.6428571428571429,0.10714285714285714,"*","*","*","*","*","*",38,0,0.84210526315789469,0.15789473684210525,"*","*","*",38,1,0,34,4,0,"*","*","*","*","*","*","*","*"]
["QJG","NQA","PROVIDE",1,"*","*","*","*","*","*","*","*",1,1,"*","*","*","*","*",1,"*","*","*","*","*","*","*","*","*","*","*","*","*"]
["QJK","NR5","LIVEWELL SOUTHWEST",0,"NA","NA",0,0,0,0,0,0,0,0,"NA","NA",0,0,0,0,"NA","NA",0,0,0,0,0,0,0,0,0,0,0]
["QJM","RY5","LINCOLNSHIRE COMMUNITY HEALTH SERVICES NHS TRUST",18,0.94444444444444442,5.5555555555555552E-2,14,3,0,1,0,0,18,215,0.94444444444444442,5.5555555555555552E-2,15,2,1,18,1,0,18,0,0,0,0,0,0,0,18,0,0]
["QK1","RWE","UNIVERSITY HOSPITALS OF LEICESTER NHS TRUST",15,1,0,15,0,0,0,0,0,14,108,1,0,13,1,0,15,1,0,15,0,0,0,15,0,0,0,0,0,0]
["QKK","RJ1","GUY'S AND ST THOMAS' NHS FOUNDATION TRUST",3,"*","*","*","*","*","*","*","*",3,111,"*","*","*","*","*",3,"*","*","*","*","*","*","*","*","*","*","*","*","*"]
["QKK","RJZ","KING'S COLLEGE HOSPITAL NHS FOUNDATION TRUST",4,"*","*","*","*","*","*","*","*",4,0,"*","*","*","*","*",4,"*","*","*","*","*","*","*","*","*","*","*","*","*"]
["QM7","RY4","HERTFORDSHIRE COMMUNITY NHS TRUST",10,1,0,8,2,0,0,0,0,10,0,0.9,0.1,7,2,1,10,1,0,10,0,0,0,0,0,0,0,0,10,0]
["QMF","RF4","BARKING, HAVERING AND REDBRIDGE UNIVERSITY HOSPITALS NHS TRUST",59,0.83050847457627119,3.3898305084745763E-2,35,14,6,1,1,2,2,0,"*","*","*","*","*",2,"*","*","*","*","*",0,0,0,0,0,0,59,0]
["QMM","RY3","NORFOLK COMMUNITY HEALTH AND CARE NHS TRUST",51,0.94117647058823528,1.9607843137254902E-2,41,7,2,1,0,0,5,0,1,0,5,0,0,5,1,0,5,0,0,0,0,0,0,0,0,51,0]
["QNC","RRE","MIDLANDS PARTNERSHIP NHS FOUNDATION TRUST",17,0.88235294117647056,0,13,2,2,0,0,0,17,17,0.94117647058823528,5.8823529411764705E-2,16,0,1,17,1,0,17,0,0,0,0,0,0,0,17,0,0]
["QNX","RXC","EAST SUSSEX HEALTHCARE NHS TRUST",2,"*","*","*","*","*","*","*","*",0,0,"NA","NA",0,0,0,0,"NA","NA",0,0,0,"*","*","*","*","*","*","*","*"]
["QNX","RDR","SUSSEX COMMUNITY NHS FOUNDATION TRUST",8,1,0,"*","*","*","*","*","*",8,0,1,0,"*","*","*",8,1,0,8,0,0,"*","*","*","*","*","*","*","*"]
["QOC","R1D","SHROPSHIRE COMMUNITY HEALTH NHS TRUST",0,"NA","NA",0,0,0,0,0,0,0,0,"NA","NA",0,0,0,0,"NA","NA",0,0,0,0,0,0,0,0,0,0,0]
["QOP","RMC","BOLTON NHS FOUNDATION TRUST",2,"*","*","*","*","*","*","*","*",0,0,"NA","NA",0,0,0,0,"NA","NA",0,0,0,"*","*","*","*","*","*","*","*"]
["QOP","R0A","MANCHESTER UNIVERSITY NHS FOUNDATION TRUST",1,"*","*","*","*","*","*","*","*",0,45,"NA","NA",0,0,0,0,"NA","NA",0,0,0,"*","*","*","*","*","*","*","*"]
["QOP","RWJ","STOCKPORT NHS FOUNDATION TRUST",5,1,0,4,1,0,0,0,0,5,0,1,0,4,1,0,5,1,0,4,1,0,0,0,0,0,0,0,5,0]
["QOP","RMP","TAMESIDE AND GLOSSOP INTEGRATED CARE NHS FOUNDATION TRUST",6,1,0,6,0,0,0,0,0,6,20,1,0,6,0,0,6,1,0,6,0,0,0,0,0,0,0,0,6,0]
["QOP","RRF","WRIGHTINGTON, WIGAN AND LEIGH NHS FOUNDATION TRUST",0,"NA","NA",0,0,0,0,0,0,0,0,"NA","NA",0,0,0,0,"NA","NA",0,0,0,0,0,0,0,0,0,0,0]
["QOQ","NNF","CITY HEALTH CARE PARTNERSHIP CIC",0,"NA","NA",0,0,0,0,0,0,0,0,"NA","NA",0,0,0,0,"NA","NA",0,0,0,0,0,0,0,0,0,0,0]
["QOQ","RJL","NORTHERN LINCOLNSHIRE AND GOOLE NHS FOUNDATION TRUST",0,"NA","NA",0,0,0,0,0,0,0,0,"NA","NA",0,0,0,0,"NA","NA",0,0,0,0,0,0,0,0,0,0,0]
["QOQ","RCB","YORK AND SCARBOROUGH TEACHING HOSPITALS NHS FOUNDATION TRUST",4,"*","*","*","*","*","*","*","*",4,7,"*","*","*","*","*",4,"*","*","*","*","*","*","*","*","*","*","*","*","*"]
["QOX","AXG","WILTSHIRE HEALTH & CARE",2,"*","*","*","*","*","*","*","*",2,0,"*","*","*","*","*",2,"*","*","*","*","*","*","*","*","*","*","*","*","*"]
["QPM","RP1","NORTHAMPTONSHIRE HEALTHCARE NHS FOUNDATION TRUST",0,"NA","NA",0,0,0,0,0,0,0,0,"NA","NA",0,0,0,0,"NA","NA",0,0,0,0,0,0,0,0,0,0,0]
["QR1","RTQ","GLOUCESTERSHIRE HEALTH AND CARE NHS FOUNDATION TRUST",19,0.94736842105263153,5.2631578947368418E-2,13,5,0,0,1,0,19,0,1,0,15,4,0,19,0.94736842105263153,5.2631578947368418E-2,17,1,1,0,0,0,0,0,0,19,0]
["QRL","R1C","SOLENT NHS TRUST",0,"NA","NA",0,0,0,0,0,0,0,0,"NA","NA",0,0,0,0,"NA","NA",0,0,0,0,0,0,0,0,0,0,0]
["QRL","RW1","SOUTHERN HEALTH NHS FOUNDATION TRUST",26,0.96153846153846156,0,22,3,1,0,0,0,26,662,1,0,23,3,0,26,1,0,26,0,0,0,0,0,0,0,0,26,0]
["QRV","RYJ","IMPERIAL COLLEGE HEALTHCARE NHS TRUST",5,0.8,0.2,3,1,0,0,1,0,5,39,0.8,0.2,3,1,1,5,1,0,3,2,0,0,0,0,0,0,0,5,0]
["QRV","R1K","LONDON NORTH WEST UNIVERSITY HEALTHCARE NHS TRUST",0,"NA","NA",0,0,0,0,0,0,0,8,"NA","NA",0,0,0,0,"NA","NA",0,0,0,0,0,0,0,0,0,0,0]
["QT1","NR3","NOTTINGHAM CITYCARE PARTNERSHIP",0,"NA","NA",0,0,0,0,0,0,0,11,"NA","NA",0,0,0,0,"NA","NA",0,0,0,0,0,0,0,0,0,0,0]
["QT6","REF","ROYAL CORNWALL HOSPITALS NHS TRUST",38,1,0,32,6,0,0,0,0,33,0,1,0,31,2,0,33,1,0,33,0,0,0,5,0,0,0,0,33,0]
["QU9","RTH","OXFORD UNIVERSITY HOSPITALS NHS FOUNDATION TRUST",2,"*","*","*","*","*","*","*","*",2,0,"*","*","*","*","*",2,"*","*","*","*","*","*","*","*","*","*","*","*","*"]
["QUA","RNA","THE DUDLEY GROUP NHS FOUNDATION TRUST",38,1,0,38,0,0,0,0,0,34,0,1,0,"*","*","*",34,1,0,"*","*","*",0,0,0,38,0,0,0,0]
["QUA","RL4","THE ROYAL WOLVERHAMPTON NHS TRUST",0,"NA","NA",0,0,0,0,0,0,0,0,"NA","NA",0,0,0,0,"NA","NA",0,0,0,0,0,0,0,0,0,0,0]
["QUA","RBK","WALSALL HEALTHCARE NHS TRUST",1,"*","*","*","*","*","*","*","*",1,1,"*","*","*","*","*",1,"*","*","*","*","*","*","*","*","*","*","*","*","*"]
["QUE","RGT","CAMBRIDGE UNIVERSITY HOSPITALS NHS FOUNDATION TRUST",1,"*","*","*","*","*","*","*","*",1,14,"*","*","*","*","*",1,"*","*","*","*","*","*","*","*","*","*","*","*","*"]
["QUE","RT1","CAMBRIDGESHIRE AND PETERBOROUGH NHS FOUNDATION TRUST",12,0.91666666666666663,8.3333333333333329E-2,"*","*","*","*","*","*",12,12,1,0,"*","*","*",12,1,0,12,0,0,"*","*","*","*","*","*","*","*"]
["QVV","RDY","DORSET HEALTHCARE UNIVERSITY NHS FOUNDATION TRUST",29,0.58620689655172409,0.13793103448275862,10,7,7,2,2,1,29,0,0.82758620689655171,0.17241379310344829,13,11,5,29,0.96551724137931039,3.4482758620689655E-2,26,2,1,0,0,0,0,0,0,29,0]
["QWE","RVR","EPSOM AND ST HELIER UNIVERSITY HOSPITALS NHS TRUST",10,1,0,9,1,0,0,0,0,0,0,"NA","NA",0,0,0,0,"NA","NA",0,0,0,0,0,0,0,10,0,0,0]
["QWE","RJ7","ST GEORGE'S UNIVERSITY HOSPITALS NHS FOUNDATION TRUST",8,0.875,0,6,1,1,0,0,0,8,0,0.875,0.125,7,0,1,8,1,0,8,0,0,0,0,0,0,0,0,8,0]
["QWO","RCF","AIREDALE NHS FOUNDATION TRUST",0,"NA","NA",0,0,0,0,0,0,0,0,"NA","NA",0,0,0,0,"NA","NA",0,0,0,0,0,0,0,0,0,0,0]
["QWO","RAE","BRADFORD TEACHING HOSPITALS NHS FOUNDATION TRUST",0,"NA","NA",0,0,0,0,0,0,0,0,"NA","NA",0,0,0,0,"NA","NA",0,0,0,0,0,0,0,0,0,0,0]
["QWO","RY6","LEEDS COMMUNITY HEALTHCARE NHS TRUST",8,0.875,0.125,5,2,0,1,0,0,8,8,1,0,6,2,0,8,1,0,6,2,0,0,0,0,2,0,0,6,0]
["QWO","RXF","MID YORKSHIRE HOSPITALS NHS TRUST",28,1,0,22,6,0,0,0,0,22,77,1,0,22,0,0,14,1,0,14,0,0,0,0,0,0,5,0,23,0]
["QWU","RLT","GEORGE ELIOT HOSPITAL NHS TRUST",0,"NA","NA",0,0,0,0,0,0,0,0,"NA","NA",0,0,0,0,"NA","NA",0,0,0,0,0,0,0,0,0,0,0]
["QWU","RJC","SOUTH WARWICKSHIRE UNIVERSITY NHS FOUNDATION TRUST",0,"NA","NA",0,0,0,0,0,0,0,15,"NA","NA",0,0,0,0,"NA","NA",0,0,0,0,0,0,0,0,0,0,0]
["QWU","RKB","UNIVERSITY HOSPITALS COVENTRY AND WARWICKSHIRE NHS TRUST",0,"NA","NA",0,0,0,0,0,0,0,8,"NA","NA",0,0,0,0,"NA","NA",0,0,0,0,0,0,0,0,0,0,0]
["QXU","NDJ","FIRST COMMUNITY HEALTH AND CARE CIC",0,"NA","NA",0,0,0,0,0,0,0,8,"NA","NA",0,0,0,0,"NA","NA",0,0,0,0,0,0,0,0,0,0,0]
["QXU","RA2","ROYAL SURREY COUNTY HOSPITAL NHS FOUNDATION TRUST",0,"NA","NA",0,0,0,0,0,0,0,0,"NA","NA",0,0,0,0,"NA","NA",0,0,0,0,0,0,0,0,0,0,0]
["QYG","RW4","MERSEY CARE NHS FOUNDATION TRUST",41,0.95121951219512191,0,35,4,2,0,0,0,0,0,"NA","NA",0,0,0,0,"NA","NA",0,0,0,0,0,0,13,0,0,28,0]

{"sheet":"BS","index":4,"n_rows":66,"n_cols":59,"rows_kept":66,"cut":false,"hidden":false,"merged":[]}
[null,"Sort","Region (LO) Code","Region (LO) name","Trust code","Trust name","Site Code","Site Name",null,"Sort Lists:","Sort range…","Sort range…","Sort range…","Reference Region List:","Code…","Name…","Linked Region List:","Code…","Name…","Reference Lists:","Code…","Code…","Name…","Code…","Name…","Trusts Linked Lists:","Code…","Name…","Sites Linked Lists:",null,null,null,null,"CSV Headers"]
["Region (LO)",1,1,1,"-","-","-","-",null,null,"ICB Code","ICB Code","ICB Code",null,"QE1","LANCASHIRE AND SOUTH CUMBRIA ICB",null,"QE1","LANCASHIRE AND SOUTH CUMBRIA ICB",null,"QE1","RW5","LANCASHIRE & SOUTH CUMBRIA NHS FOUNDATION TRUST",null,null,null,"AXG","AIREDALE NHS FOUNDATION TRUST",null,null,null,null,null,"Breakdown","STP Code","Trust Code","Trust Name","Q1 - Total Responses","Q1 - Percentage Positive","Q1 - Percentage Negative","Q1 - Very Good","Q1 - Good","Q1 - Neither Good nor Poor","Q1 - Poor","Q1 - Very Poor","Q1 - Don't Know","Q2 - Total Responses","Q2 - Total Eligible","Q2 - Percentage Positive","Q2 - Percentage Negative","Q2 - Yes definitely","Q2 - Yes to some extent","Q2 - No","Q3 - Total Responses","Q3 - Percentage Positive","Q3 - Percentage Negative","Q3 - Yes definitely","Q3 - Yes to some extent","Q3 - No"]
["Trusts",1,1,1,1,1,"-","-",null,null,"ICB Name","Organisation Code","Trust Code",null,"QF7","SOUTH YORKSHIRE ICB",null,"QF7","SOUTH YORKSHIRE ICB",null,"QF7","RXE","ROTHERHAM DONCASTER AND SOUTH HUMBER NHS FOUNDATION TRUST",null,null,null,"NDJ","BARKING, HAVERING AND REDBRIDGE UNIVERSITY HOSPITALS NHS TRUST"]
["Site",1,1,1,1,1,1,1,null,null,"Total Responses - Q1","Organisation Name","Trust Name",null,"QGH","HEREFORDSHIRE AND WORCESTERSHIRE ICB",null,"QGH","HEREFORDSHIRE AND WORCESTERSHIRE ICB",null,"QF7","RHQ","SHEFFIELD TEACHING HOSPITALS NHS FOUNDATION TRUST",null,null,null,"NNF","BIRMINGHAM COMMUNITY HEALTHCARE NHS FOUNDATION TRUST",null,null,null,null,null,"Collection Mode","STP Code","Trust Code","Trust Name","SMS","Smartphone","Smartphone After","Paper","Paper After","Telephone","Online","Other"]
[null,null,null,null,null,null,null,null,null,null,"Percentage Positive - Q1","Total Responses - Q1","Site Code",null,"QH8","MID AND SOUTH ESSEX ICB",null,"QH8","MID AND SOUTH ESSEX ICB",null,"QF7","RFR","THE ROTHERHAM NHS FOUNDATION TRUST",null,null,null,"NQA","BOLTON NHS FOUNDATION TRUST"]
[null,null,null,null,null,null,null,null,null,null,"Percentage Negative - Q1","Percentage Positive - Q1","Site Name",null,"QHG","BEDFORDSHIRE, LUTON AND MILTON KEYNES ICB",null,"QHG","BEDFORDSHIRE, LUTON AND MILTON KEYNES ICB",null,"QHG","RD8","MILTON KEYNES UNIVERSITY HOSPITAL NHS FOUNDATION TRUST",null,null,null,"NR3","BRADFORD TEACHING HOSPITALS NHS FOUNDATION TRUST"]
[null,null,null,null,null,null,null,null,null,null,"Very Good - Q1","Percentage Negative - Q1","Total Responses",null,"QHL","BIRMINGHAM AND SOLIHULL ICB",null,"QHL","BIRMINGHAM AND SOLIHULL ICB",null,"QHL","RYW","BIRMINGHAM COMMUNITY HEALTHCARE NHS FOUNDATION TRUST",null,null,null,"NR5","CAMBRIDGE UNIVERSITY HOSPITALS NHS FOUNDATION TRUST"]
[null,null,null,null,null,null,null,null,null,null,"Good - Q1","Very Good - Q1","Total Eligible",null,"QHM","NORTH EAST AND NORTH CUMBRIA ICB",null,"QHM","NORTH EAST AND NORTH CUMBRIA ICB",null,"QHM","RXP","COUNTY DURHAM AND DARLINGTON NHS FOUNDATION TRUST",null,null,null,"R0A","CAMBRIDGESHIRE AND PETERBOROUGH NHS FOUNDATION TRUST"]
[null,null,null,null,null,null,null,null,null,null,"Neither Good nor Poor - Q1","Good - Q1","Percentage Positive",null,"QJ2","DERBY AND DERBYSHIRE ICB",null,"QJ2","DERBY AND DERBYSHIRE ICB",null,"QHM","RR7","GATESHEAD HEALTH NHS FOUNDATION TRUST",null,null,null,"R0B","CITY HEALTH CARE PARTNERSHIP CIC"]
[null,null,null,null,null,null,null,null,null,null,"Poor - Q1","Neither Good nor Poor - Q1","Percentage Negative",null,"QJG","SUFFOLK AND NORTH EAST ESSEX ICB",null,"QJG","SUFFOLK AND NORTH EAST ESSEX ICB",null,"QHM","RNN","NORTH CUMBRIA INTEGRATED CARE NHS FOUNDATION TRUST",null,null,null,"R1C","COUNTY DURHAM AND DARLINGTON NHS FOUNDATION TRUST"]
[null,null,null,null,null,null,null,null,null,null,"Very Poor - Q1","Poor - Q1","Very Good",null,"QJK","DEVON ICB",null,"QJK","DEVON ICB",null,"QHM","RVW","NORTH TEES AND HARTLEPOOL NHS FOUNDATION TRUST",null,null,null,"R1D","DERBYSHIRE COMMUNITY HEALTH SERVICES NHS FOUNDATION TRUST"]
[null,null,null,null,null,null,null,null,null,null,"Don't Know - Q1","Very Poor - Q1","Good",null,"QJM","LINCOLNSHIRE ICB",null,"QJM","LINCOLNSHIRE ICB",null,"QHM","RTF","NORTHUMBRIA HEALTHCARE NHS FOUNDATION TRUST",null,null,null,"R1K","DORSET HEALTHCARE UNIVERSITY NHS FOUNDATION TRUST"]
[null,null,null,null,null,null,null,null,null,null,"Total Responses - Q2","Don't Know - Q1","Neither Good nor Poor",null,"QK1","LEICESTER, LEICESTERSHIRE AND RUTLAND ICB",null,"QK1","LEICESTER, LEICESTERSHIRE AND RUTLAND ICB",null,"QHM","RTR","SOUTH TEES HOSPITALS NHS FOUNDATION TRUST",null,null,null,"RA2","EAST SUFFOLK AND NORTH ESSEX NHS FOUNDATION TRUST"]
[null,null,null,null,null,null,null,null,null,null,"Total Eligible - Q2","Total Responses - Q2","Poor",null,"QKK","SOUTH EAST LONDON ICB",null,"QKK","SOUTH EAST LONDON ICB",null,"QHM","R0B","SOUTH TYNESIDE AND SUNDERLAND NHS FOUNDATION TRUST",null,null,null,"RAE","EAST SUSSEX HEALTHCARE NHS TRUST"]
[null,null,null,null,null,null,null,null,null,null,"Percentage Positive - Q2","Total Eligible - Q2","Very Poor",null,"QKS","KENT AND MEDWAY ICB",null,"QKS","KENT AND MEDWAY ICB",null,"QHM","RTD","THE NEWCASTLE UPON TYNE HOSPITALS NHS FOUNDATION TRUST",null,null,null,"RBK","EPSOM AND ST HELIER UNIVERSITY HOSPITALS NHS TRUST"]
[null,null,null,null,null,null,null,null,null,null,"Percentage Negative - Q2","Percentage Positive - Q2","Don't Know",null,"QM7","HERTFORDSHIRE AND WEST ESSEX ICB",null,"QM7","HERTFORDSHIRE AND WEST ESSEX ICB",null,"QJ2","RY8","DERBYSHIRE COMMUNITY HEALTH SERVICES NHS FOUNDATION TRUST",null,null,null,"RCB","FIRST COMMUNITY HEALTH AND CARE CIC"]
[null,null,null,null,null,null,null,null,null,null,"Yes definitely - Q2","Percentage Negative - Q2",null,null,"QMF","NORTH EAST LONDON ICB",null,"QMF","NORTH EAST LONDON ICB",null,"QJG","RDE","EAST SUFFOLK AND NORTH ESSEX NHS FOUNDATION TRUST",null,null,null,"RCF","GATESHEAD HEALTH NHS FOUNDATION TRUST"]
[null,null,null,null,null,null,null,null,null,null,"Yes to some extent - Q2","Yes definitely - Q2",null,null,"QMJ","NORTH CENTRAL LONDON ICB",null,"QMJ","NORTH CENTRAL LONDON ICB",null,"QJG","NQA","PROVIDE",null,null,null,"RD8","GEORGE ELIOT HOSPITAL NHS TRUST"]
[null,null,null,null,null,null,null,null,null,null,"No - Q2","Yes to some extent - Q2",null,null,"QMM","NORFOLK AND WAVENEY ICB",null,"QMM","NORFOLK AND WAVENEY ICB",null,"QJK","NR5","LIVEWELL SOUTHWEST",null,null,null,"RDE","GLOUCESTERSHIRE HEALTH AND CARE NHS FOUNDATION TRUST"]
[null,null,null,null,null,null,null,null,null,null,"Total Responses - Q3","No - Q2",null,null,"QNC","STAFFORDSHIRE AND STOKE-ON-TRENT ICB",null,"QNC","STAFFORDSHIRE AND STOKE-ON-TRENT ICB",null,"QJM","RY5","LINCOLNSHIRE COMMUNITY HEALTH SERVICES NHS TRUST",null,null,null,"RDR","GUY'S AND ST THOMAS' NHS FOUNDATION TRUST"]
[null,null,null,null,null,null,null,null,null,null,"Percentage Positive - Q3","Total Responses - Q3",null,null,"QNQ","FRIMLEY ICB",null,"QNQ","FRIMLEY ICB",null,"QK1","RWE","UNIVERSITY HOSPITALS OF LEICESTER NHS TRUST",null,null,null,"RDY","HERTFORDSHIRE COMMUNITY NHS TRUST"]
[null,null,null,null,null,null,null,null,null,null,"Percentage Negative - Q3","Percentage Positive - Q3",null,null,"QNX","SUSSEX ICB",null,"QNX","SUSSEX ICB",null,"QKK","RJ1","GUY'S AND ST THOMAS' NHS FOUNDATION TRUST",null,null,null,"REF","IMPERIAL COLLEGE HEALTHCARE NHS TRUST"]
[null,null,null,null,null,null,null,null,null,null,"Yes definitely - Q3","Percentage Negative - Q3",null,null,"QOC","SHROPSHIRE, TELFORD AND WREKIN ICB",null,"QOC","SHROPSHIRE, TELFORD AND WREKIN ICB",null,"QKK","RJZ","KING'S COLLEGE HOSPITAL NHS FOUNDATION TRUST",null,null,null,"RF4","KING'S COLLEGE HOSPITAL NHS FOUNDATION TRUST"]
[null,null,null,null,null,null,null,null,null,null,"Yes to some extent - Q3","Yes definitely - Q3",null,null,"QOP","GREATER MANCHESTER ICB",null,"QOP","GREATER MANCHESTER ICB",null,"QM7","RY4","HERTFORDSHIRE COMMUNITY NHS TRUST",null,null,null,"RFR","LANCASHIRE & SOUTH CUMBRIA NHS FOUNDATION TRUST"]
[null,null,null,null,null,null,null,null,null,null,"No - Q3","Yes to some extent - Q3",null,null,"QOQ","HUMBER AND NORTH YORKSHIRE ICB",null,"QOQ","HUMBER AND NORTH YORKSHIRE ICB",null,"QMF","RF4","BARKING, HAVERING AND REDBRIDGE UNIVERSITY HOSPITALS NHS TRUST",null,null,null,"RGT","LEEDS COMMUNITY HEALTHCARE NHS TRUST"]
[null,null,null,null,null,null,null,null,null,null,null,"No - Q3",null,null,"QOX","BATH AND NORTH EAST SOMERSET, SWINDON AND WILTSHIRE ICB",null,"QOX","BATH AND NORTH EAST SOMERSET, SWINDON AND WILTSHIRE ICB",null,"QMM","RY3","NORFOLK COMMUNITY HEALTH AND CARE NHS TRUST",null,null,null,"RHQ","LINCOLNSHIRE COMMUNITY HEALTH SERVICES NHS TRUST"]
[null,null,null,null,null,null,null,null,null,null,null,"SMS - Q1",null,null,"QPM","NORTHAMPTONSHIRE ICB",null,"QPM","NORTHAMPTONSHIRE ICB",null,"QNC","RRE","MIDLANDS PARTNERSHIP NHS FOUNDATION TRUST",null,null,null,"RJ1","LIVEWELL SOUTHWEST"]
[null,null,null,null,null,null,null,null,null,null,null,"Smartphone - Q1",null,null,"QR1","GLOUCESTERSHIRE ICB",null,"QR1","GLOUCESTERSHIRE ICB",null,"QNX","RXC","EAST SUSSEX HEALTHCARE NHS TRUST",null,null,null,"RJ7","LONDON NORTH WEST UNIVERSITY HEALTHCARE NHS TRUST"]
[null,null,null,null,null,null,null,null,null,null,null,"Smartphone After - Q1",null,null,"QRL","HAMPSHIRE AND ISLE OF WIGHT ICB",null,"QRL","HAMPSHIRE AND ISLE OF WIGHT ICB",null,"QNX","RDR","SUSSEX COMMUNITY NHS FOUNDATION TRUST",null,null,null,"RJC","MANCHESTER UNIVERSITY NHS FOUNDATION TRUST"]
[null,null,null,null,null,null,null,null,null,null,null,"Paper - Q1",null,null,"QRV","NORTH WEST LONDON ICB",null,"QRV","NORTH WEST LONDON ICB",null,"QOC","R1D","SHROPSHIRE COMMUNITY HEALTH NHS TRUST",null,null,null,"RJL","MERSEY CARE NHS FOUNDATION TRUST"]
[null,null,null,null,null,null,null,null,null,null,null,"Paper After - Q1",null,null,"QSL","SOMERSET ICB",null,"QSL","SOMERSET ICB",null,"QOP","RMC","BOLTON NHS FOUNDATION TRUST",null,null,null,"RJZ","MID YORKSHIRE HOSPITALS NHS TRUST"]
[null,null,null,null,null,null,null,null,null,null,null,"Telephone - Q1",null,null,"QT1","NOTTINGHAM AND NOTTINGHAMSHIRE ICB",null,"QT1","NOTTINGHAM AND NOTTINGHAMSHIRE ICB",null,"QOP","R0A","MANCHESTER UNIVERSITY NHS FOUNDATION TRUST",null,null,null,"RKB","MIDLANDS PARTNERSHIP NHS FOUNDATION TRUST"]
[null,null,null,null,null,null,null,null,null,null,null,"Online - Q1",null,null,"QT6","CORNWALL AND THE ISLES OF SCILLY ICB",null,"QT6","CORNWALL AND THE ISLES OF SCILLY ICB",null,"QOP","RWJ","STOCKPORT NHS FOUNDATION TRUST",null,null,null,"RL4","MILTON KEYNES UNIVERSITY HOSPITAL NHS FOUNDATION TRUST"]
[null,null,null,null,null,null,null,null,null,null,null,"Other - Q1",null,null,"QU9","BUCKINGHAMSHIRE, OXFORDSHIRE AND BERKSHIRE WEST ICB",null,"QU9","BUCKINGHAMSHIRE, OXFORDSHIRE AND BERKSHIRE WEST ICB",null,"QOP","RMP","TAMESIDE AND GLOSSOP INTEGRATED CARE NHS FOUNDATION TRUST",null,null,null,"RLT","NORFOLK COMMUNITY HEALTH AND CARE NHS TRUST"]
[null,null,null,null,null,null,null,null,null,null,null,"SMS - Q2",null,null,"QUA","BLACK COUNTRY ICB",null,"QUA","BLACK COUNTRY ICB",null,"QOP","RRF","WRIGHTINGTON, WIGAN AND LEIGH NHS FOUNDATION TRUST",null,null,null,"RMC","NORTH CUMBRIA INTEGRATED CARE NHS FOUNDATION TRUST"]
[null,null,null,null,null,null,null,null,null,null,null,"Smartphone - Q2",null,null,"QUE","CAMBRIDGESHIRE AND PETERBOROUGH ICB",null,"QUE","CAMBRIDGESHIRE AND PETERBOROUGH ICB",null,"QOQ","NNF","CITY HEALTH CARE PARTNERSHIP CIC",null,null,null,"RMP","NORTH TEES AND HARTLEPOOL NHS FOUNDATION TRUST"]
[null,null,null,null,null,null,null,null,null,null,null,"Smartphone After - Q2",null,null,"QUY","BRISTOL, NORTH SOMERSET AND SOUTH GLOUCESTERSHIRE ICB",null,"QUY","BRISTOL, NORTH SOMERSET AND SOUTH GLOUCESTERSHIRE ICB",null,"QOQ","RJL","NORTHERN LINCOLNSHIRE AND GOOLE NHS FOUNDATION TRUST",null,null,null,"RNA","NORTHAMPTONSHIRE HEALTHCARE NHS FOUNDATION TRUST"]
[null,null,null,null,null,null,null,null,null,null,null,"Paper - Q2",null,null,"QVV","DORSET ICB",null,"QVV","DORSET ICB",null,"QOQ","RCB","YORK AND SCARBOROUGH TEACHING HOSPITALS NHS FOUNDATION TRUST",null,null,null,"RNN","NORTHERN LINCOLNSHIRE AND GOOLE NHS FOUNDATION TRUST"]
[null,null,null,null,null,null,null,null,null,null,null,"Paper After - Q2",null,null,"QWE","SOUTH WEST LONDON ICB",null,"QWE","SOUTH WEST LONDON ICB",null,"QOX","AXG","WILTSHIRE HEALTH & CARE",null,null,null,"RP1","NORTHUMBRIA HEALTHCARE NHS FOUNDATION TRUST"]
[null,null,null,null,null,null,null,null,null,null,null,"Telephone - Q2",null,null,"QWO","WEST YORKSHIRE ICB",null,"QWO","WEST YORKSHIRE ICB",null,"QPM","RP1","NORTHAMPTONSHIRE HEALTHCARE NHS FOUNDATION TRUST",null,null,null,"RR7","NOTTINGHAM CITYCARE PARTNERSHIP"]
[null,null,null,null,null,null,null,null,null,null,null,"Online - Q2",null,null,"QWU","COVENTRY AND WARWICKSHIRE ICB",null,"QWU","COVENTRY AND WARWICKSHIRE ICB",null,"QR1","RTQ","GLOUCESTERSHIRE HEALTH AND CARE NHS FOUNDATION TRUST",null,null,null,"RRE","OXFORD UNIVERSITY HOSPITALS NHS FOUNDATION TRUST"]
[null,null,null,null,null,null,null,null,null,null,null,"Other - Q2",null,null,"QXU","SURREY HEARTLANDS ICB",null,"QXU","SURREY HEARTLANDS ICB",null,"QRL","R1C","SOLENT NHS TRUST",null,null,null,"RRF","PROVIDE"]
[null,null,null,null,null,null,null,null,null,null,null,"SMS - Q3",null,null,"QYG","CHESHIRE AND MERSEYSIDE ICB",null,"QYG","CHESHIRE AND MERSEYSIDE ICB",null,"QRL","RW1","SOUTHERN HEALTH NHS FOUNDATION TRUST",null,null,null,"RT1","ROTHERHAM DONCASTER AND SOUTH HUMBER NHS FOUNDATION TRUST"]
[null,null,null,null,null,null,null,null,null,null,null,"Smartphone - Q3",null,null,null,null,null,null,null,null,"QRV","RYJ","IMPERIAL COLLEGE HEALTHCARE NHS TRUST",null,null,null,"RTD","ROYAL CORNWALL HOSPITALS NHS TRUST"]
[null,null,null,null,null,null,null,null,null,null,null,"Smartphone After - Q3",null,null,null,null,null,null,null,null,"QRV","R1K","LONDON NORTH WEST UNIVERSITY HEALTHCARE NHS TRUST",null,null,null,"RTF","ROYAL SURREY COUNTY HOSPITAL NHS FOUNDATION TRUST"]
[null,null,null,null,null,null,null,null,null,null,null,"Paper - Q3",null,null,null,null,null,null,null,null,"QT1","NR3","NOTTINGHAM CITYCARE PARTNERSHIP",null,null,null,"RTH","SHEFFIELD TEACHING HOSPITALS NHS FOUNDATION TRUST"]
[null,null,null,null,null,null,null,null,null,null,null,"Paper After - Q3",null,null,null,null,null,null,null,null,"QT6","REF","ROYAL CORNWALL HOSPITALS NHS TRUST",null,null,null,"RTQ","SHROPSHIRE COMMUNITY HEALTH NHS TRUST"]
[null,null,null,null,null,null,null,null,null,null,null,"Telephone - Q3",null,null,null,null,null,null,null,null,"QU9","RTH","OXFORD UNIVERSITY HOSPITALS NHS FOUNDATION TRUST",null,null,null,"RTR","SOLENT NHS TRUST"]
[null,null,null,null,null,null,null,null,null,null,null,"Online - Q3",null,null,null,null,null,null,null,null,"QUA","RNA","THE DUDLEY GROUP NHS FOUNDATION TRUST",null,null,null,"RVR","SOUTH TEES HOSPITALS NHS FOUNDATION TRUST"]
[null,null,null,null,null,null,null,null,null,null,null,"Other - Q3",null,null,null,null,null,null,null,null,"QUA","RL4","THE ROYAL WOLVERHAMPTON NHS TRUST",null,null,null,"RVW","SOUTH TYNESIDE AND SUNDERLAND NHS FOUNDATION TRUST"]
[null,null,null,null,null,null,null,null,null,null,null,null,null,null,null,null,null,null,null,null,"QUA","RBK","WALSALL HEALTHCARE NHS TRUST",null,null,null,"RW1","SOUTH WARWICKSHIRE UNIVERSITY NHS FOUNDATION TRUST"]
[null,null,null,null,null,null,null,null,null,null,null,null,null,null,null,null,null,null,null,null,"QUE","RGT","CAMBRIDGE UNIVERSITY HOSPITALS NHS FOUNDATION TRUST",null,null,null,"RW4","SOUTHERN HEALTH NHS FOUNDATION TRUST"]
[null,null,null,null,null,null,null,null,null,null,null,null,null,null,null,null,null,null,null,null,"QUE","RT1","CAMBRIDGESHIRE AND PETERBOROUGH NHS FOUNDATION TRUST",null,null,null,"RW5","ST GEORGE'S UNIVERSITY HOSPITALS NHS FOUNDATION TRUST"]
[null,null,null,null,null,null,null,null,null,null,null,null,null,null,null,null,null,null,null,null,"QVV","RDY","DORSET HEALTHCARE UNIVERSITY NHS FOUNDATION TRUST",null,null,null,"RWE","STOCKPORT NHS FOUNDATION TRUST"]
[null,null,null,null,null,null,null,null,null,null,null,null,null,null,null,null,null,null,null,null,"QWE","RVR","EPSOM AND ST HELIER UNIVERSITY HOSPITALS NHS TRUST",null,null,null,"RWJ","SUSSEX COMMUNITY NHS FOUNDATION TRUST"]
[null,null,null,null,null,null,null,null,null,null,null,null,null,null,null,null,null,null,null,null,"QWE","RJ7","ST GEORGE'S UNIVERSITY HOSPITALS NHS FOUNDATION TRUST",null,null,null,"RXC","TAMESIDE AND GLOSSOP INTEGRATED CARE NHS FOUNDATION TRUST"]
[null,null,null,null,null,null,null,null,null,null,null,null,null,null,null,null,null,null,null,null,"QWO","RCF","AIREDALE NHS FOUNDATION TRUST",null,null,null,"RXE","THE DUDLEY GROUP NHS FOUNDATION TRUST"]
[null,null,null,null,null,null,null,null,null,null,null,null,null,null,null,null,null,null,null,null,"QWO","RAE","BRADFORD TEACHING HOSPITALS NHS FOUNDATION TRUST",null,null,null,"RXF","THE NEWCASTLE UPON TYNE HOSPITALS NHS FOUNDATION TRUST"]
[null,null,null,null,null,null,null,null,null,null,null,null,null,null,null,null,null,null,null,null,"QWO","RY6","LEEDS COMMUNITY HEALTHCARE NHS TRUST",null,null,null,"RXP","THE ROTHERHAM NHS FOUNDATION TRUST"]
[null,null,null,null,null,null,null,null,null,null,null,null,null,null,null,null,null,null,null,null,"QWO","RXF","MID YORKSHIRE HOSPITALS NHS TRUST",null,null,null,"RY3","THE ROYAL WOLVERHAMPTON NHS TRUST"]
[null,null,null,null,null,null,null,null,null,null,null,null,null,null,null,null,null,null,null,null,"QWU","RLT","GEORGE ELIOT HOSPITAL NHS TRUST",null,null,null,"RY4","UNIVERSITY HOSPITALS COVENTRY AND WARWICKSHIRE NHS TRUST"]
[null,null,null,null,null,null,null,null,null,null,null,null,null,null,null,null,null,null,null,null,"QWU","RJC","SOUTH WARWICKSHIRE UNIVERSITY NHS FOUNDATION TRUST",null,null,null,"RY5","UNIVERSITY HOSPITALS OF LEICESTER NHS TRUST"]
[null,null,null,null,null,null,null,null,null,null,null,null,null,null,null,null,null,null,null,null,"QWU","RKB","UNIVERSITY HOSPITALS COVENTRY AND WARWICKSHIRE NHS TRUST",null,null,null,"RY6","WALSALL HEALTHCARE NHS TRUST"]
[null,null,null,null,null,null,null,null,null,null,null,null,null,null,null,null,null,null,null,null,"QXU","NDJ","FIRST COMMUNITY HEALTH AND CARE CIC",null,null,null,"RY8","WILTSHIRE HEALTH & CARE"]
[null,null,null,null,null,null,null,null,null,null,null,null,null,null,null,null,null,null,null,null,"QXU","RA2","ROYAL SURREY COUNTY HOSPITAL NHS FOUNDATION TRUST",null,null,null,"RYJ","WRIGHTINGTON, WIGAN AND LEIGH NHS FOUNDATION TRUST"]
[null,null,null,null,null,null,null,null,null,null,null,null,null,null,null,null,null,null,null,null,"QYG","RW4","MERSEY CARE NHS FOUNDATION TRUST",null,null,null,"RYW","YORK AND SCARBOROUGH TEACHING HOSPITALS NHS FOUNDATION TRUST"]